Cogmind - Beta 9.4 @@@ ROGUE MODE // 2020.02.27 @ 11:35:18 Player: ExAliquo Result: Destroyed by as-38140 with Assembled Rifle Performance ------------- Evolutions (0) 0 Regions Visited (2) 400 Robots Destroyed (29) 145 Value Destroyed (547) 547 Prototype IDs (5) 100 Alien Tech Used (0) 0 Bonus (0) 0 TOTAL SCORE: 1192 Bonus ------- None Cogmind --------- Core Integrity 0/250 Matter 300/300 Energy 310/310 System Corruption 0% Temperature Cool (17) Movement Walking (180) Ox2 Location -10/Mines Parts ------- > --- POWER (1) -------- Fission Core > --- PROPULSION (2) --- Aluminum Leg Flexi-carbon Leg > --- UTILITY (2) ------ High-capacity Storage Unit High-capacity Storage Unit > --- WEAPON (2) ------- Particle Cannon > --- INVENTORY (20) --- Ion Engine Ion Engine Ion Engine Ion Engine Heat Sink Heat Sink High-capacity Storage Unit Small Laser Small Laser Small Laser Small Laser Particle Cannon Grenade Launcher Peak State ------------ > --- POWER ------------ Fission Core > --- PROPULSION ------- Aluminum Leg Flexi-carbon Leg > --- UTILITY ---------- High-capacity Storage Unit High-capacity Storage Unit > --- WEAPON ----------- Particle Cannon > --- INVENTORY -------- Ion Engine Ion Engine Ion Engine Wheel Heat Sink Heat Sink High-capacity Storage Unit Small Laser Small Laser Small Laser Small Laser Particle Cannon Grenade Launcher [Rating: 16] Favorites ----------- Power Ion Engine Engine Ion Engine Power Core Fission Core Propulsion Light Treads Treads Light Treads Leg Aluminum Leg Wheel Wheel Utility Small Storage Unit Storage Small Storage Unit Weapon Assault Rifle Energy Gun EM Pulse Gun Energy Cannon Particle Cannon Ballistic Gun Assault Rifle Build | -11 -10 -10 ------- Run | Scr Mat Min Slots Evolved . | . . . Power . | . . . Propulsion . | . . . Utility . | . . . Weapon . | . . . Parts Attached 37 | 4 22 11 Power 6 | . 4 2 Engine 5 | . 4 1 Core 1 | . . 1 Reactor . | . . . Propulsion 17 | 3 7 7 Treads 8 | 1 4 3 Leg 3 | . . 3 Wheel 6 | 2 3 1 Hover . | . . . Flight . | . . . Utility 6 | 1 5 . Device . | . . . Storage 6 | 1 5 . Processor . | . . . Hackware . | . . . Protection . | . . . Artifact . | . . . Weapon 8 | . 6 2 Energy Gun 1 | . 1 . Energy Cannon 2 | . . 2 Ballistic Gun 5 | . 5 . Ballistic Cannon . | . . . Launcher . | . . . Special Weapon . | . . . Impact Weapon . | . . . Slashing Weapon . | . . . Piercing Weapon . | . . . Special Melee Weapon . | . . . Unidentified Prototypes . | . . . Parts Lost 11 | . 3 8 Power 1 | . . 1 Propulsion 4 | . . 4 Utility . | . . . Weapon 6 | . 3 3 Highest Loss Streak 8 | . 1 8 Average Slot Usage (%) 98 | . 99 87 Engine 13 | . 14 7 Treads 17 | . 18 9 Leg 1 | . . 12 Wheel 8 | . 9 4 Storage 28 | . 28 28 Energy Gun 4 | . 4 . Energy Cannon 1 | . . 9 Ballistic Gun 21 | . 23 10 Naked Turns . | . . . Heaviest Build 78 | 15 72 78 Greatest Support 40 | 20 40 40 Greatest Overweight (x) 7 | 1 7 7 Average Overweight (x) 1 | . 1 3 Largest Inventory Capacity 20 | 8 20 20 Average Capacity 13 | 7 12 20 Most Carried 20 | 6 20 20 Average Carried 11 | 5 11 15 Final Capacity 20 | 8 20 20 Final Carried 20 | 5 20 13 Class Distribution -------------------- 69% | Mutant 30% | Hauler-Mutant Dominant Class ---------------- Mutant | -10/Materials Hauler-Mutant | -10/Mines Resources | -11 -10 -10 ----------- Run | Scr Mat Min Matter Collected 774 | 240 442 92 Remotely . | . . . Salvage Created 871 | 61 705 105 Parts 58 | 2 55 1 Haulers Intercepted 2 | . 2 . Recyclers Shooed . | . . . Parts Field Recycled . | . . . Retrieved Matter . | . . . Parts Self-Destructed . | . . . Prevented . | . . . Kills | -11 -10 -10 ------- Run | Scr Mat Min Combat Hostiles Destroyed 22 | . 19 3 Guns 19 | . 19 . Cannons 3 | . . 3 Classes Destroyed 7 | 1 4 2 Hauler 2 | . 2 . Recycler 2 | 1 . 1 Watcher 3 | . 3 . Swarmer 9 | . 9 . Grunt 10 | . 10 . Demolisher 1 | . . 1 Assembled 2 | . . 2 Best Kill Streak 3 | 1 3 2 Combat Bots Only 3 | . 3 2 Max Kills in Single Turn 1 | 1 1 1 Gunslinging . | . . . Exploded . | . . . Melee . | . . . Uniques/NPCs Destroyed . | . . . Combat | -11 -10 -10 -------- Run | Scr Mat Min Damage Taken 1608 | . 790 818 Core 256 | . 133 123 Absorbed by Shields . | . . . Core Remaining (%) 100 | 100 . . Volleys Fired 84 | 2 66 16 Largest 2 | 1 2 2 Hottest 68 | 40 60 68 Shots Fired 151 | 2 130 19 Gun 138 | 2 130 6 Cannon 13 | . . 13 Launcher . | . . . Special . | . . . Kinetic 121 | . 115 6 Thermal 15 | . 2 13 Explosive . | . . . Electromagnetic 15 | 2 13 . Robot Hit Streak 16 | 2 16 3 Robot Miss Streak 4 | . 4 2 Penetration Max . | . . . Secondary Targets . | . . . Shots Hit Robots 94 | 2 82 10 Core Hits 44 | 2 37 5 Critical Hits 1 | . . 1 Critical Kills . | . . . Critical Parts Destroyed 1 | . . 1 Melee Attacks . | . . . Impact . | . . . Slashing . | . . . Piercing . | . . . Sneak Attacks . | . . . Combat Hostiles . | . . . Follow-up Attacks . | . . . Damage Inflicted 1126 | 25 889 212 Guns 942 | 25 889 28 Cannons 184 | . . 184 Explosions . | . . . Melee . | . . . Ramming . | . . . Kinetic 762 | . 734 28 Thermal 194 | . 10 184 Explosive . | . . . Electromagnetic 170 | 25 145 . Impact . | . . . Slashing . | . . . Piercing . | . . . Highest Corruption . | . . . Average Corruption . | . . . Corruption Purged . | . . . Overload Shots . | . . . Overflow Damage . | . . . Projectiles . | . . . Explosions . | . . . Melee . | . . . Knockbacks . | . . . Impact . | . . . Kinetic . | . . . Secondary . | . . . Self-Inflicted Damage . | . . . Shots . | . . . Rammed . | . . . Targets Rammed . | . . . Kicked . | . . . Crushed . | . . . Highest Temperature 156 | . 156 84 Average Temperature 52 | . 62 36 Received Heat Transfer 234 | . 234 . Siege Activations . | . . . Robots Corrupted . | . . . Combat Hostiles . | . . . Parts Fried 1 | . 1 . Impact Corruptions . | . . . Robots Melted . | . . . Combat Hostiles . | . . . Parts Melted . | . . . Heat Transferred 358 | . 25 333 Parts Sabotaged . | . . . Parts Stolen . | . . . Parts Stripped . | . . . Power Chain Reactions . | . . . Missiles Intercepted . | . . . Alert | -11 -10 -10 ------- Run | Scr Mat Min Peak Influence 260 | 5 260 43 Average Influence 53 | 4 59 23 Maximum Alert Level 1 | . 1 . Low Security (%) 96 | 100 96 100 Level 1 3 | . 3 . Level 2 . | . . . Level 3 . | . . . Level 4 . | . . . Level 5 . | . . . High Security . | . . . Max Security . | . . . Squads Dispatched 5 | . 5 . Investigation 5 | . 5 . Extermination . | . . . Reinforcement . | . . . Assault . | . . . Garrison . | . . . Intercept . | . . . Construction Impeded . | . . . Haulers Reinforced . | . . . Stealth | -11 -10 -10 --------- Run | Scr Mat Min Distress Signals 1 | . 1 . Communications Jammed . | . . . Distress Signals . | . . . Times Spotted 30 | . 25 5 Peak Tracking Total 4 | . 4 3 Tactical Retreats 1 | . 1 . Traps | -11 -10 -10 ------- Run | Scr Mat Min Traps Triggered 2 | . 2 . Indirectly . | . . . Trap Hack Attempts . | . . . Triggered . | . . . Disarmed . | . . . Reprogrammed . | . . . Reused . | . . . Traps Extracted . | . . . Installed . | . . . Triggered . | . . . Machines | -11 -10 -10 ---------- Run | Scr Mat Min Machines Disabled . | . . . Max in Single Turn . | . . . Machines Sabotaged . | . . . Garrisons Compromised . | . . . Overloaded Fab Kills . | . . . Fab Network Shutdowns . | . . . Hacking | -11 -10 -10 --------- Run | Scr Mat Min Machines Accessed 9 | . 9 . Terminals 7 | . 7 . Fabricators . | . . . Repair Stations . | . . . Recycling Units 2 | . 2 . Scanalyzers . | . . . Garrison Access . | . . . Total Hacks 36 | . 36 . Successful 24 | . 24 . Failed 12 | . 12 . Catastrophic 1 | . 1 . Database Lockouts . | . . . Manual 23 | . 23 . Terminals 34 | . 34 . Fabricators . | . . . Repair Stations . | . . . Recycling Units 2 | . 2 . Scanalyzers . | . . . Garrison Access . | . . . Terminal Hacks 9 | . 9 . Prototype ID Bank 3 | . 3 . Branch Access Points 1 | . 1 . Unreport Threat 1 | . 1 . Recall Investigation 1 | . 1 . Hauler Manifests 1 | . 1 . Registered Components 1 | . 1 . Zone Layout 1 | . 1 . Fabricator Hacks . | . . . Repair Station Hacks . | . . . Recycling Unit Hacks . | . . . Scanalyzer . | . . . Garrison Access Hacks . | . . . Unauthorized Hacks 35 | . 35 . Terminals 13 | . 13 . Track 4 | . 4 . Botnet 5 | . 5 . Disrupt 3 | . 3 . Operators 1 | . 1 . Fabricators . | . . . Repair Stations . | . . . Recycling Units 2 | . 2 . Tunnel 2 | . 2 . Scanalyzers . | . . . Garrison Access . | . . . Data Cores Recovered . | . . . Used . | . . . Hacking Detections 7 | . 7 . Full Trace Events 1 | . 1 . Feedback Events . | . . . Feedback Blocked . | . . . Robot Schematics Acquired . | . . . Robots Built . | . . . Matter . | . . . Time . | . . . Total Robot Build Rating . | . . . Part Schematics Acquired . | . . . Parts Built . | . . . Matter . | . . . Time . | . . . Total Part Build Rating . | . . . Parts Repaired . | . . . Time . | . . . Parts Recycled . | . . . Recycled Matter . | . . . Retrieved Matter . | . . . Retrieved Components . | . . . Parts Scanalyzed . | . . . Part Schematics Acquired . | . . . Parts Damaged . | . . . Bothacking | -11 -10 -10 ------------ Run | Scr Mat Min Used RIF Installer . | . . . Robots Hacked . | . . . Non-combat . | . . . Combat . | . . . Robot Hacks Applied . | . . . Relay Couplers Released . | . . . Robots Rewired . | . . . Allies Hacked . | . . . Hacks Repelled . | . . . Allies | -11 -10 -10 -------- Run | Scr Mat Min Total Allies . | . . . Largest Group . | . . . Highest-Rated Group . | . . . Highest-Rated Ally . | . . . Total Orders . | . . . Ally Attacks . | . . . Total Damage . | . . . Kills . | . . . Allies Corrupted . | . . . Allies Melted . | . . . Intel | -11 -10 -10 ------- Run | Scr Mat Min Robot Analysis Total . | . . . Derelict Logs Recovered . | . . . Drone Launches . | . . . Drone Recoveries . | . . . Exploration | -11 -10 -10 ------------- Run | Scr Mat Min Turns Passed 2067 | 21 1764 282 Spaces Moved 1008 | 11 909 88 Core . | . . . Treads 271 | . 254 17 Legs 49 | 4 . 45 Wheels 688 | 7 655 26 Hover . | . . . Flight . | . . . Fastest Speed 90 | 90 90 150 Average Speed 122 | 100 117 178 Slowest Speed 220 | 120 220 220 Overloaded Moves . | . . . Propulsion Burnouts . | . . . Robots Hopped . | . . . Cave-ins Triggered . | . . . Exploration Rate (%) 41 | 2 99 23 Regions Visited 2 Branch Regions 1 Pre-discovered Areas 2 | . 2 . Known Exits Taken 1 | . 1 . Unknown Exits Taken 1 | 1 . . Scrap Searched . | . . . Spaces Dug . | . . . Terrain Destroyed 1 | . . 1 Melee . | . . . Projectile 1 | . . 1 AOE . | . . . Actions | -11 -10 -10 --------- Run | Scr Mat Min Total 1698 | 17 1485 196 Wait 528 | . 453 75 Move 1006 | 10 908 88 Hop . | . . . Pick Up 22 | . 20 2 Fast Attach 5 | 1 2 2 Attach 9 | . 1 8 Detach . | . . . Swap 23 | 3 19 1 Drop 21 | 1 16 4 Fire 84 | 2 66 16 Melee . | . . . Ram . | . . . Kick . | . . . Crush . | . . . Escape Stasis . | . . . Rewire . | . . . Trap . | . . . Miscellaneous . | . . . Route ------- -11/Scrapyard -10/Materials (discovered 5 exits: [*Mat x3] / *Min x2) -10/Mines History --------- Turn | Location | Event 5 | -11/Scrapyard | Discovered new exit (range 3) 22 | -11/Scrapyard | Entered Materials 324 | -10/Materials | Build established: Mutant 444 | -10/Materials | Discovered new exit (range 15) 550 | -10/Materials | Discovered new exit (range 15) 799 | -10/Materials | Identified exit to Mines 997 | -10/Materials | Discovered new exit (range 13) 1224 | -10/Materials | Discovered new exit (range 10) 1650 | -10/Materials | Core integrity fell below 50% 1726 | -10/Materials | Build established: Hauler-Mutant 1786 | -10/Materials | Entered Mines 1798 | -10/Mines | Assembled infested the area 1803 | -10/Mines | Assisted by a Guerilla fighting off Assembled 1814 | -10/Mines | Met a Derelict bent on vengeance 1891 | -10/Mines | Core integrity fell below 20% 1936 | -10/Mines | Lost 8 parts (1p4n3w) 2068 | -10/Mines | Destroyed by as-38140 with Assembled Rifle Last Messages --------------- 01948_ U-05 Engineer lays Concrete. 01952_ The unstable cave ceiling collapses. 01952_ U-05 Engineer builds a Wall. 01953_ U-05 Engineer lays Concrete. 01954_ Dropped Lgt. Treads. 01954_ U-05 Engineer lays Concrete. 01954_ Acquired Flexi-carbon Leg. 01955_ U-05 Engineer lays Concrete. 01955_ U-05 Engineer builds a Wall. 01956_ Acquired 47 matter. 01957_ U-05 Engineer lays Concrete. 01959_ Dropped Ion Engine. 01960_ Acquired Fission Core. 01961_ U-05 Engineer lays Concrete. 01963_ Acquired Ion Engine. 01964_ U-05 Engineer lays Concrete. 01964_ Acquired 10 matter. 01965_ U-05 Engineer lays Concrete. 01966_ Dropped Wheel. 01967_ U-05 Engineer lays Concrete. Map ----- +----------------------------------------------------+ | ????## ??????????## #####???????? | | ????# ???????### ##???????????? | | ???## #??#####" % ##?####???????? | | ??## ! ### #??# ##??????? | | ?## =%= % #?? ##?????? | | ? "= % !!= #?? #?????? | | ??? ## =% ##?# #?????? | | ???????# ! ### #??????? | | ???????# # ##?????? | | ?????????# #?????? | | ???????# #?????? | | ??????# # % ##?????? | | ??????# # ## ##??????? | | ??????# # ### ## ##??????? | | ??????### # ? ###### ######?? | | ????????#?# # ?????## ##? | | ??????????#?# ??????# #? | | ????????????##??????## #? | | ?????????????????????# ##? | | ?????????????????????# #?? | | ?????????????????????## #?? | | ??????????????????????###### #?? | | ???????????????????????????### ##?? | | ?????????????????????????????# ##??? | | ???????????????# ############# #???? | | ???????????????# a @ t #???? | | ???????????????#=###############???? | | ???????????????????????????????????? | | ???????????????????????????????????? | | ???????????????????????????????????? | | ???????????????????????????????????? | | ???????????????????????????????????? | | ???????????????????????????????????? | | ???????????????????????????????????? | | ???????????????????????????????????? | | ???????????????????????????????????? | | ???????????????????????????????????? | | ???????????????????????????????????? | | ???????????????????????????????????? | | ???????????????????????????????????? | | ???????????????????????????????????? | | ???????????????????????????????????? | | ???????????????????????????????????? | | ???????????????????????????????????? | | ???????????????????????????????????? | | ???????????????????????????????????? | | ???????????????????????????????????? | | ???????????????????????????????????? | | ???????????????????????????????????? | | ???????????????????????????????????? | +----------------------------------------------------+ Best States ------------- Heat Dissipation 25 Energy Generation 18 Energy Capacity 310 Matter Stores 300 Matter Capacity 300 Sight Range 16 Terrain Scan Density 10 Evasion (%) 42 Recoil Reduction 2 Item Schematics ----------------- None Robot Schematics ------------------ None Fabricated ------------ Nothing Alien Tech Used ----------------- None Achievements -------------- None Challenges ------------ None Game ------ Seed LayeredFocalScythe Manual? 0 Play Time 00:22:03 Cumulative 12.6 hours Start 2020.02.27 @ 11:14:11 End 2020.02.27 @ 11:35:18 Sessions 1 Manual Loads 0 Difficulty Rogue Special Mode None Game No. 9 Rogue 9 Adventurer 0 Explorer 0 Win Type - Total 0 Types 0/0/0/0/0/0/0 Lore% 16 Gallery% 25 Achievement% 33 Wizard Run 0 Options --------- ASCII 0 Keyboard 0 Movement Numpad Keybinds 0 Fullscreen 2 Font 12/Smallcaps Map View 83x54 Tactical HUD 1 Map Filters NONE Filters NONE Steam 1 RUN: 3cc983a3-1028-4249-a056-5a8f8cf868e4